bitfinex/quotes_SOLUSD_20240625
["timestamp","ask_amount","ask_price","bid_price","bid_amount"]
[1719310522423,100.0,137.17,137.16,7.2907]
[1719310522603,100.0,137.21,137.16,26.76]
[1719310522796,100.0,137.21,137.2,7.2886]
[1719310523102,100.0,137.23,137.17,21.7893]
[1719310523310,100.0,137.26,137.24,7.286]
[1719310524204,100.0,137.26,137.25,7.2859]
[1719310524629,100.0,137.26,137.19,26.76]
[1719310524630,100.0,137.25,137.24,7.2862]
[1719310524924,200.0,137.31,137.23,6.6205]
[1719310525108,200.0,137.31,137.25,26.76]
[1719310525316,100.0,137.31,137.3,7.2833]
[1719310525619,200.0,137.29,137.27,7.2847]
[1719310526126,100.0,137.29,137.28,7.2843]
[1719310529131,100.0,137.26,137.25,26.76]
[1719310529925,100.0,137.26,137.25,34.0459]
[1719310530918,100.0,137.26,137.25,7.2859]
[1719310531908,100.17,137.26,137.25,7.2859]
[1719310532226,100.17,137.26,137.22,7.2875]
[1719310532227,100.0,137.23,137.22,7.2875]
[1719310533234,100.34,137.26,137.25,7.2859]
[1719310533603,200.34,137.26,137.25,7.2859]
[1719310533815,200.34,137.26,137.22,26.76]
[1719310534125,100.0,137.24,137.23,7.287]
[1719310539415,100.0,137.28,137.27,7.2849]
[1719310541305,100.0,137.26,137.25,7.2859]
[1719310541536,100.34,137.26,137.25,7.2859]
[1719310542147,200.34,137.26,137.24,7.2863]
[1719310542327,100.0,137.23,137.21,26.76]
[1719310542540,100.0,137.23,137.22,7.2875]
[1719310542722,100.17,137.25,137.24,7.2865]
[1719310542928,100.0,137.27,137.21,26.76]
[1719310543163,0.34,137.26,137.25,7.2859]
[1719310543332,0.17,137.26,137.25,7.2859]
[1719310543533,100.0,137.27,137.26,7.2854]
[1719310543753,100.17,137.27,137.26,7.2854]
[1719310547736,228.34503201,137.33,137.25,6.4391]
[1719310547940,100.0,137.32,137.31,7.2827]
[1719310548960,112.31503201,137.33,137.32,7.2822]
[1719310549349,100.0,137.33,137.32,7.2822]
[1719310549736,100.0,137.3,137.27,26.76]
[1719310549941,100.0,137.28,137.25,33.1991]
[1719310550144,100.0,137.28,137.25,26.76]
[1719310550349,100.0,137.26,137.25,34.0459]
[1719310552658,100.0,137.26,137.25,7.2859]
[1719310552859,100.34,137.26,137.25,7.2859]
[1719310553743,145.34,137.26,137.25,7.2859]
[1719310561974,100.34,137.26,137.25,7.2859]
[1719310562163,100.17,137.26,137.25,7.2859]
[1719310562862,100.0,137.26,137.25,7.2859]
[1719310563065,100.0,137.29,137.28,7.2843]
[1719310563269,200.0,137.31,137.3,7.2833]
[1719310563579,100.0,137.31,137.3,7.2833]
[1719310563777,200.0,137.33,137.26,26.76]
[1719310563951,200.0,137.33,137.32,7.2822]
[1719310565268,100.0,137.3,137.29,7.2838]
[1719310565470,100.34,137.3,137.29,7.2838]
[1719310565672,100.17,137.3,137.29,7.2838]
[1719310566178,100.34,137.3,137.29,7.2838]
[1719310566867,100.17,137.3,137.29,7.2838]
[1719310567250,100.0,137.3,137.29,7.2838]
[1719310568368,100.0,137.25,137.22,15.1872]
[1719310568577,100.0,137.25,137.24,7.2865]
[1719310568877,100.17,137.25,137.24,7.2865]
[1719310571382,200.34,137.25,137.24,7.2865]
[1719310571675,100.34,137.25,137.24,7.2865]
[1719310571874,100.0,137.27,137.26,7.2854]
[1719310573355,100.0,137.29,137.28,7.2843]
[1719310574370,100.17,137.29,137.28,7.2843]
[1719310574561,100.0,137.26,137.25,26.76]
[1719310574756,100.0,137.26,137.25,34.0459]
[1719310576260,200.0,137.32,137.25,26.76]
[1719310576460,200.0,137.32,137.31,7.2827]
[1719310576672,16.2567,137.35,137.28,26.76]
[1719310576673,100.0,137.34,137.33,7.2817]
[1719310578383,100.0,137.36,137.35,7.2806]
[1719310579671,100.17,137.36,137.35,7.2806]
[1719310579870,100.34,137.36,137.35,7.2806]
[1719310580783,100.0,137.34,137.31,26.76]
[1719310581175,100.0,137.34,137.33,7.2817]
[1719310582271,100.0,137.32,137.31,34.0427]
[1719310582473,100.0,137.32,137.31,7.2827]
[1719310583275,100.0,137.3,137.26,22.2368]
[1719310583484,100.0,137.3,137.29,7.2838]
[1719310583966,100.17,137.3,137.29,7.2838]
[1719310584167,200.34,137.3,137.29,7.2838]
[1719310584368,100.34,137.3,137.29,7.2838]
[1719310584593,100.17,137.3,137.29,7.2838]
[1719310584775,100.0,137.3,137.29,7.2838]
[1719310587890,100.0,137.34,137.33,7.2817]
[1719310589168,100.0,137.34,137.32,7.2821]
[1719310589169,200.17,137.34,137.32,7.2821]
[1719310589369,0.17,137.33,137.32,7.2821]
[1719310589600,200.0,137.32,137.3,7.2829]
[1719310589802,100.0,137.3,137.29,7.2838]
[1719310591078,100.0,137.32,137.31,7.2827]
[1719310591283,100.0,137.32,137.31,34.0427]
[1719310592295,100.0,137.34,137.33,7.2814]
[1719310592477,100.0,137.36,137.31,26.76]
[1719310592478,100.0,137.36,137.35,7.2806]
[1719310592683,200.0,137.36,137.35,7.2806]
[1719310593195,200.0,137.38,137.37,7.2796]
[1719310594108,100.0,137.38,137.37,7.2796]
[1719310594302,200.0,137.41,137.37,26.76]
[1719310594704,100.0,137.41,137.37,26.76]
[1719310595011,200.0,137.41,137.4,7.278]
[1719310596411,100.0,137.38,137.37,26.76]
[1719310597833,100.0,137.38,137.37,34.0396]
[1719310599204,100.0,137.38,137.36,7.2799]
[1719310599405,100.0,137.36,137.35,7.2806]
[1719310599914,100.0,137.4,137.34,26.76]
[1719310600112,100.0,137.4,137.39,7.2785]
[1719310600409,100.17,137.4,137.39,7.2785]
[1719310601308,0.17,137.4,137.39,7.2785]
[1719310602197,100.0,137.41,137.37,26.76]
[1719310602411,116.3708,137.43,137.37,26.76]
[1719310605093,100.0,137.38,137.37,26.76]
[1719310605281,100.17,137.38,137.37,7.2796]
[1719310606691,100.34,137.38,137.37,7.2796]
[1719310607315,100.34,137.38,137.35,7.2802]
[1719310607316,100.0,137.36,137.35,7.2802]
[1719310607490,100.34,137.36,137.35,7.2802]
[1719310608499,100.0,137.33,137.32,26.76]
[1719310608809,100.0,137.33,137.32,34.0422]
[1719310613411,100.17,137.33,137.32,34.0422]
[1719310614617,0.17,137.36,137.32,26.76]
[1719310614928,100.17,137.35,137.34,7.2811]
[1719310615225,100.34,137.35,137.34,7.2811]
[1719310616421,200.34,137.35,137.34,7.2811]
[1719310617117,100.34,137.35,137.34,7.2811]
[1719310617414,200.0,137.39,137.34,26.76]
[1719310617614,100.0,137.39,137.38,7.279]
[1719310617920,111.75675423,137.41,137.4,7.278]
[1719310618229,200.0,137.41,137.4,7.278]
[1719310618892,100.0,137.41,137.4,7.278]
[1719310619100,200.0,137.41,137.4,7.278]
[1719310619895,200.0,137.41,137.39,7.2784]
[1719310620090,200.0,137.41,137.34,26.76]
[1719310620091,100.0,137.36,137.35,7.2806]
[1719310620821,100.34,137.36,137.35,7.2806]
[1719310621713,200.0,137.39,137.38,7.279]
[1719310621927,100.34,137.39,137.38,7.279]
[1719310622308,100.17,137.39,137.38,7.279]
[1719310622626,6.6141,137.43,137.42,7.2769]
[1719310622627,200.0,137.43,137.42,7.2769]
[1719310622994,200.0,137.45,137.44,7.2759]
[1719310623193,200.0,137.45,137.35,22.1496]
[1719310623194,100.0,137.47,137.43,26.76]
[1719310623515,116.5176,137.49,137.47,7.2743]
[1719310623809,100.0,137.48,137.47,7.2743]
[1719310624308,40.0893,137.6,137.4,15.353]
[1719310624309,100.0,137.51,137.46,26.76]
[1719310624698,200.0,137.51,137.46,26.76]
[1719310625004,100.0,137.49,137.48,7.2737]
[1719310625201,100.0,137.51,137.5,7.2727]
[1719310629420,0.04325855,137.52,137.51,7.2721]
[1719310629624,0.21325855,137.52,137.51,7.2721]
[1719310630514,100.0,137.48,137.42,21.485]
[1719310630721,100.0,137.48,137.43,20.0]
[1719310631101,100.0,137.48,137.47,7.2743]
[1719310631302,100.0,137.5,137.49,7.2732]
[1719310632102,100.21325855,137.52,137.51,7.2721]
[1719310632825,100.21325855,137.52,137.5,7.2726]
[1719310633031,100.21325855,137.52,137.43,20.0]
[1719310633201,100.0,137.5,137.49,7.2732]
[1719310633604,100.0,137.47,137.43,22.18180307]
[1719310634010,100.0,137.47,137.46,7.2748]
[1719310635022,100.0,137.44,137.43,2.18180307]
[1719310635365,158.567502,137.44,137.43,2.18180307]
[1719310635542,165.843402,137.44,137.43,2.18180307]
[1719310635705,200.0,137.36,137.34,7.281]
[1719310635907,0.17,137.35,137.34,7.281]
[1719310636334,200.0,137.34,137.31,7.2826]
[1719310636519,100.0,137.32,137.31,7.2826]
[1719310636712,100.0,137.32,137.3,7.2832]
[1719310637530,100.0,137.32,137.31,7.2827]
[1719310637703,100.34,137.35,137.26,21.0496]
[1719310637910,100.34,137.35,137.33,7.2812]
[1719310638219,100.34,137.35,137.26,21.0496]
[1719310638220,100.0,137.33,137.26,21.0496]
[1719310638425,100.0,137.33,137.31,7.2823]
[1719310638811,100.0,137.31,137.29,7.2833]
[1719310639010,100.0,137.31,137.25,31.15]
[1719310639213,100.0,137.31,137.3,7.2833]
[1719310639914,100.0,137.29,137.25,31.15]
[1719310640113,100.0,137.29,137.28,7.2843]
[1719310640331,100.17,137.29,137.28,7.2843]
[1719310640634,100.0,137.29,137.28,7.2843]
[1719310640836,100.0,137.29,137.21,22.8155]
[1719310640837,100.0,137.33,137.21,22.8155]
[1719310641020,100.0,137.33,137.25,31.15]
[1719310641329,19.594602,137.39,137.3,7.2832]
[1719310641330,100.0,137.31,137.3,7.2832]
[1719310641533,100.17,137.31,137.29,7.2837]
[1719310641839,100.0,137.31,137.29,7.2837]
[1719310642042,100.0,137.31,137.3,7.2833]
[1719310642219,100.17,137.31,137.3,7.2833]
[1719310642911,100.0,137.29,137.25,31.15]
[1719310643320,100.0,137.29,137.21,22.8155]
[1719310643515,100.0,137.29,137.22,65.0]
[1719310643718,100.0,137.29,137.21,22.8155]
[1719310643719,100.0,137.28,137.26,7.2851]
[1719310644042,100.0,137.28,137.21,22.8155]
[1719310644043,100.0,137.25,137.21,22.8155]
[1719310644231,100.0,137.25,137.24,7.286]
[1719310645725,0.17,137.27,137.26,7.2854]
[1719310646247,100.0,137.3,137.21,22.8155]
[1719310646538,100.0,137.31,137.29,7.2834]
[1719310647353,0.17,137.3,137.29,7.2834]
[1719310647531,100.0,137.28,137.21,25.00080133]
[1719310647850,100.0,137.26,137.21,25.00080133]
[1719310648062,100.0,137.26,137.25,7.2854]
[1719310648216,100.17,137.26,137.25,7.2854]
[1719310651033,100.0,137.28,137.27,7.2849]
[1719310651239,100.34,137.28,137.27,7.2849]
[1719310652745,100.0,137.26,137.25,7.2858]
[1719310652930,100.34,137.26,137.25,7.2858]
[1719310653317,200.34,137.26,137.25,7.2858]
[1719310654032,100.0,137.24,137.23,7.287]
[1719310654237,100.17,137.24,137.22,7.2874]
[1719310654442,100.0,137.24,137.22,7.2874]
[1719310654744,200.0,137.24,137.22,7.2874]
[1719310654941,0.17,137.23,137.22,7.2874]
[1719310659537,100.17,137.26,137.25,7.2859]
[1719310659743,200.0,137.28,137.18,31.15]
[1719310660065,200.0,137.28,137.19,65.0]
[1719310660381,200.0,137.28,137.26,7.2854]
[1719310660865,200.0,137.28,137.27,7.2849]
[1719310661353,200.0,137.28,137.26,7.2853]
[1719310661560,100.0,137.26,137.25,7.2858]
[1719310661971,200.17,137.26,137.25,7.2858]
[1719310662145,100.0,137.24,137.19,20.0]
[1719310662358,100.0,137.24,137.23,7.287]
[1719310662662,100.17,137.24,137.23,7.287]
[1719310662958,200.17,137.24,137.23,7.287]
[1719310663144,200.34,137.24,137.23,7.287]
[1719310664747,100.34,137.24,137.23,7.287]
[1719310665054,0.17,137.24,137.23,7.287]
[1719310665240,200.0,137.28,137.17,22.164]
[1719310665565,0.17,137.27,137.26,7.2854]
[1719310671758,100.0,137.25,137.22,26.8]
[1719310671962,100.0,137.25,137.24,7.2865]
[1719310672365,100.17,137.25,137.24,7.2865]
[1719310675064,100.0,137.24,137.23,7.2869]
[1719310675266,100.34,137.24,137.23,7.2869]
[1719310676957,100.0,137.23,137.22,7.2874]
[1719310677157,100.17,137.23,137.22,7.2874]
[1719310677770,100.34,137.23,137.22,7.2874]
[1719310678075,100.17,137.23,137.22,7.2874]
[1719310678771,100.0,137.21,137.2,7.2884]
[1719310678961,100.17,137.21,137.2,7.2884]
[1719310680578,100.0,137.19,137.18,7.2892]
[1719310680873,23.4871,137.26,137.18,7.2892]
[1719310680874,213.76339088,137.28,137.25,7.2858]
[1719310681665,100.0,137.27,137.25,7.2858]
[1719310682178,100.0,137.24,137.18,26.8]
[1719310682380,100.0,137.26,137.18,26.8]
[1719310682675,200.0,137.26,137.18,26.8]
[1719310682867,100.0,137.26,137.24,7.2865]
[1719310683050,0.17,137.25,137.24,7.2865]
[1719310683451,100.0,137.24,137.23,7.2868]
[1719310685262,100.0,137.22,137.18,26.8]
[1719310686157,100.0,137.22,137.21,7.288]
[1719310690178,100.17,137.22,137.21,7.288]
[1719310693483,100.0,137.19,137.12,22.3552]
[1719310693660,100.0,137.19,137.18,7.2896]
[1719310701170,100.0,137.24,137.16,6.3083]
[1719310701485,100.0,137.27,137.21,26.8]
[1719310702098,100.0,137.27,137.25,7.2858]
[1719310702386,100.0,137.26,137.21,26.8]
[1719310702583,100.0,137.26,137.24,7.2864]
[1719310703597,100.0,137.24,137.21,26.8]
[1719310703977,100.0,137.28,137.27,7.2849]
[1719310704581,100.0,137.26,137.24,26.8]
[1719310705396,100.0,137.26,137.25,7.2859]
[1719310705595,100.0,137.26,137.24,34.0864]
[1719310706202,100.0,137.22,137.21,7.288]
[1719310713573,100.0,137.25,137.2,26.8]
[1719310713880,100.0,137.25,137.24,7.2865]
[1719310714290,100.0,137.25,137.23,7.2869]
[1719310716207,100.0,137.23,137.21,7.2876]
[1719310716376,100.0,137.21,137.2,7.2884]
[1719310716983,100.0,137.23,137.22,7.2875]
[1719310717188,100.34,137.23,137.22,7.2875]
[1719310717485,100.0,137.23,137.22,7.2875]
[1719310718678,100.0,137.23,137.21,7.2878]
[1719310720195,100.0,137.21,137.17,2.18593859]
[1719310720397,100.0,137.19,137.18,7.2893]
[1719310720595,100.0,137.19,137.17,36.27593859]
[1719310721006,100.0,137.19,137.18,7.2896]
[1719310721721,100.0,137.21,137.17,26.8]
[1719310721891,100.0,137.21,137.2,7.2886]
[1719310722318,100.0,137.24,137.23,7.287]
[1719310722515,100.17,137.24,137.23,7.287]
[1719310722689,100.0,137.24,137.22,7.2874]
[1719310725315,0.17,137.23,137.19,26.8]
[1719310725520,100.0,137.22,137.21,7.2879]
[1719310726015,100.0,137.22,137.2,7.2886]
[1719310726422,100.0,137.22,137.21,7.288]
[1719310726622,100.0,137.2,137.18,26.8]
[1719310726917,100.0,137.22,137.21,7.288]
[1719310730802,100.0,137.25,137.18,26.8]
[1719310731118,100.0,137.25,137.23,7.2865]
[1719310731328,100.0,137.25,137.18,26.8]
[1719310731500,111.54325779,137.28,137.26,7.2851]
[1719310731707,100.0,137.28,137.27,7.2849]
[1719310732314,100.0,137.28,137.26,7.2853]
[1719310732816,0.17,137.27,137.26,7.2853]
[1719310733221,100.0,137.28,137.27,7.2849]
[1719310733517,116.1239,137.3,137.28,7.2841]
[1719310734431,100.0,137.3,137.28,7.2841]
[1719310734615,100.0,137.28,137.26,7.2852]
[1719310734797,100.0,137.26,137.25,7.2858]
[1719310735101,100.0,137.24,137.2,16.3879]
[1719310735436,100.0,137.24,137.22,7.2871]
[1719310735804,100.0,137.24,137.23,7.287]
[1719310736699,100.0,137.26,137.24,7.2861]
[1719310736900,0.17,137.25,137.24,7.2861]
[1719310737302,100.0,137.26,137.25,7.2859]
[1719310737914,100.0,137.24,137.23,7.2869]
[1719310738125,200.0,137.26,137.23,7.2869]
[1719310738304,0.17,137.25,137.23,7.2869]
[1719310738512,100.0,137.24,137.23,7.2869]
[1719310740403,100.0,137.24,137.22,7.2873]
[1719310740404,200.0,137.24,137.22,7.2873]
[1719310740711,0.17,137.23,137.22,7.2873]
[1719310748032,100.0,137.24,137.23,7.287]
[1719310750312,100.17,137.24,137.23,7.287]
[1719310750622,200.34,137.24,137.23,7.287]
[1719310751623,100.17,137.24,137.23,7.287]
[1719310752210,100.0,137.24,137.23,7.287]
[1719310752735,100.0,137.24,137.23,16.217]
[1719310755948,200.17,137.24,137.23,16.217]
[1719310756239,200.34,137.24,137.23,16.217]
[1719310757036,100.17,137.24,137.23,16.217]
[1719310757734,100.0,137.28,137.23,8.93]
[1719310758044,100.0,137.3,137.27,17.86]
[1719310758224,100.0,137.3,137.29,7.2838]
[1719310758414,100.0,137.3,137.29,16.2138]
[1719310758918,100.0,137.3,137.29,8.93]
[1719310759445,100.0,137.3,137.29,16.2138]
[1719310759813,100.0,137.3,137.28,7.2842]
[1719310760642,100.0,137.3,137.29,8.93]
[1719310760826,100.34,137.3,137.29,8.93]
[1719310761331,100.0,137.32,137.29,8.93]
[1719310763247,100.0,137.36,137.35,16.2106]
[1719310764618,100.0,137.36,137.35,7.2806]
[1719310765344,100.0,137.39,137.32,26.76]
[1719310765527,0.17,137.38,137.32,26.76]
[1719310765844,0.17,137.38,137.37,7.2793]
[1719310766046,100.0,137.39,137.37,7.2793]
[1719310766346,200.0,137.39,137.37,7.2793]
[1719310766524,100.0,137.39,137.37,7.2793]
[1719310766728,200.0,137.39,137.37,7.2793]
[1719310766933,0.17,137.38,137.37,7.2793]
[1719310767744,0.17,137.38,137.32,26.76]
[1719310767949,100.0,137.37,137.36,7.2799]
[1719310768528,0.17,137.38,137.37,7.2796]
[1719310769849,100.0,137.37,137.36,7.2799]
[1719310773341,100.0,137.34,137.32,26.76]
[1719310773658,100.0,137.36,137.35,7.2806]
[1719310774426,100.17,137.36,137.35,7.2806]
[1719310774934,100.0,137.36,137.35,7.2806]
[1719310775751,100.17,137.36,137.35,7.2806]
[1719310777940,200.17,137.36,137.35,7.2806]
[1719310779155,100.17,137.36,137.35,7.2806]
[1719310780158,100.0,137.36,137.35,7.2806]
[1719310780461,100.0,137.42,137.41,7.2774]
[1719310780843,100.0,137.43,137.42,7.2769]
[1719310782449,100.0,137.45,137.43,7.276]
[1719310783157,100.0,137.46,137.45,7.2753]
[1719310783462,200.0,137.46,137.44,7.2757]
[1719310784542,200.0,137.46,137.45,7.2753]
[1719310784731,100.34,137.46,137.45,7.2753]
[1719310784936,200.34,137.46,137.45,7.2753]
[1719310785144,200.34,137.46,137.44,7.2757]
[1719310785854,0.17,137.45,137.44,7.2757]
[1719310786664,0.17,137.45,137.44,16.1857]
[1719310786847,100.0,137.44,137.43,7.2762]
[1719310787052,100.0,137.44,137.43,16.1862]
[1719310788142,100.0,137.46,137.45,7.2753]
[1719310788346,100.0,137.48,137.45,8.91]
[1719310788541,100.0,137.5,137.47,8.91]
[1719310788874,100.0,137.5,137.49,16.1832]
[1719310789249,100.0,137.5,137.49,7.2732]
[1719310789450,100.0,137.5,137.49,16.1832]
[1719310790865,100.0,137.5,137.49,7.2732]
[1719310792367,0.04325855,137.52,137.51,7.2721]
[1719310792368,100.04325855,137.52,137.51,7.2721]
[1719310794379,0.04325855,137.52,137.51,7.2721]
[1719310794558,0.04325855,137.52,137.51,52.2721]
[1719310794959,5.855e-05,137.52,137.51,74.45263375]
[1719310795275,100.0,137.62,137.51,67.35053375]
[1719310795489,100.0,137.6,137.59,7.2678]
[1719310795859,100.0,137.6,137.54,26.7]
[1719310796180,100.0,137.6,137.59,7.2679]
[1719310796770,100.0,137.62,137.59,7.2679]
[1719310797175,100.0,137.6,137.59,7.2679]
[1719310797479,100.0,137.62,137.6,7.2673]
[1719310798187,21.7645,137.64,137.6,7.2673]
[1719310798188,100.0,137.61,137.6,7.2673]
[1719310798491,100.0,137.64,137.62,7.2663]
[1719310798492,100.0,137.63,137.62,7.2663]
[1719310798693,100.0,137.61,137.6,7.2671]
[1719310800893,100.0,137.58,137.55,26.7]
[1719310801073,100.0,137.6,137.59,7.2679]
[1719310801589,100.0,137.62,137.61,7.2669]
[1719310803193,100.0,137.58,137.53,42.3365]
[1719310803395,100.0,137.58,137.57,7.269]
[1719310803568,15.0939,137.61,137.6,7.2674]
[1719310803772,100.0,137.58,137.57,7.269]
[1719310803973,100.0,137.58,137.53,42.3365]
[1719310803974,100.0,137.55,137.54,7.2706]
[1719310804305,100.0,137.59,137.53,26.7]
[1719310804508,200.0,137.59,137.58,7.2684]
[1719310804706,200.34,137.59,137.58,7.2684]
[1719310804902,200.34,137.59,137.57,7.2688]
[1719310804903,100.0,137.58,137.57,7.2688]
[1719310805083,100.34,137.58,137.53,26.7]
[1719310805277,100.0,137.58,137.57,7.269]
[1719310805606,100.0,137.58,137.56,7.2694]
[1719310805607,100.17,137.58,137.56,7.2694]
[1719310805903,0.17,137.57,137.56,7.2694]
[1719310806284,100.17,137.58,137.57,7.269]
[1719310806285,100.0,137.58,137.57,7.269]
[1719310806598,100.17,137.58,137.57,7.269]
[1719310806813,100.0,137.6,137.59,7.2679]
[1719310807914,100.0,137.62,137.56,26.7]
[1719310808416,100.0,137.62,137.61,7.2669]
[1719310808593,100.0,137.65,137.57,15.2196]
[1719310808911,100.0,137.65,137.64,7.2653]
[1719310809707,200.4445,137.67,137.64,7.2653]
[1719310810106,0.17,137.66,137.65,7.2647]
[1719310811604,200.4445,137.67,137.66,7.2642]
[1719310811787,200.4445,137.67,137.65,7.2646]
[1719310812789,100.0,137.62,137.61,7.2669]
[1719310812994,100.0,137.64,137.63,7.2658]
[1719310813198,100.17,137.64,137.63,7.2658]
[1719310813916,100.0,137.64,137.63,7.2658]
[1719310815891,100.0,137.61,137.58,28.87942431]
[1719310816106,100.0,137.61,137.58,2.17942431]
[1719310816293,100.0,137.65,137.58,47.17942431]
[1719310816605,100.0,137.65,137.64,7.2652]
[1719310817296,100.0,137.66,137.58,47.17942431]
[1719310817297,100.0,137.66,137.65,7.2647]
[1719310817492,100.0,137.66,137.64,7.2651]
[1719310817692,100.0,137.66,137.65,7.2648]
[1719310817886,0.4445,137.67,137.66,7.2642]
[1719310818088,0.4445,137.67,137.63,26.7]
[1719310818304,100.0,137.66,137.65,7.2648]
[1719310820393,100.0,137.66,137.62,26.7]
[1719310820394,100.0,137.63,137.58,2.17942431]
[1719310820713,100.0,137.63,137.62,7.2663]
[1719310822111,0.17,137.65,137.58,28.87942431]
[1719310822418,100.4445,137.67,137.66,7.2642]
[1719310822987,648.4,137.76,137.63,16.3607]
[1719310822988,5.9331506,137.78,137.7,22.6005]
[1719310823190,24.36133951,137.94,137.7,22.6005]
[1719310823191,100.850024,137.84,137.71,20.17]
[1719310823381,100.0,137.81,137.74,26.7]
[1719310823604,100.0,137.81,137.78,7.2578]
[1719310823797,100.0,137.81,137.79,7.2573]
[1719310823994,100.0,137.81,137.8,7.2568]
[1719310824207,0.850024,137.84,137.74,26.7]
[1719310824208,100.0,137.83,137.74,26.7]
[1719310824386,100.0,137.83,137.72,2.1772088]
[1719310824387,100.0,137.83,137.82,7.2558]
[1719310824587,0.850024,137.84,137.77,26.7]
[1719310824787,0.850024,137.84,137.82,7.2553]
[1719310825116,0.850024,137.84,137.77,26.7]
[1719310825117,100.0,137.8,137.77,26.7]
[1719310825294,100.850024,137.84,137.83,7.2553]
[1719310825295,0.850024,137.84,137.83,7.2553]
[1719310825896,100.0,137.83,137.82,7.2557]
[1719310826103,100.0,137.81,137.8,7.2564]
[1719310826420,100.0,137.83,137.81,7.2562]
[1719310826591,100.0,137.81,137.72,2.1772088]
[1719310826895,200.0,137.81,137.72,47.1772088]
[1719310827296,200.0,137.81,137.77,7.2584]
[1719310827297,100.0,137.79,137.77,7.2584]
[1719310827592,100.0,137.81,137.72,2.1772088]
[1719310827793,0.17,137.8,137.79,7.2573]
[1719310828014,0.17,137.8,137.79,7.2574]
[1719310828319,0.850024,137.84,137.73,2.17705072]
[1719310828617,0.850024,137.84,137.83,7.2553]
[1719310828787,0.850024,137.84,137.82,7.2557]
[1719310828993,0.850024,137.84,137.8,7.2566]
[1719310829189,0.850024,137.84,137.81,7.2562]
[1719310830317,0.850024,137.84,137.82,7.2553]
[1719310830616,0.850024,137.84,137.73,2.17705072]
[1719310830790,0.850024,137.84,137.75,31.02]
[1719310830995,0.850024,137.84,137.83,7.2553]
[1719310831721,0.850024,137.84,137.76,2.17657663]
[1719310832013,0.850024,137.84,137.82,7.2556]
[1719310832216,0.850024,137.84,137.83,7.2553]
[1719310838503,0.850024,137.84,137.83,7.2553]
[1719310839230,100.0,137.92,137.83,42.4433]
[1719310839389,100.0,137.92,137.91,7.2511]
[1719310840200,0.04317251,137.94,137.83,67.4433]
[1719310840399,0.04317251,137.94,137.84,67.17531338]
[1719310840633,0.04317251,137.94,137.85,2.51515558]